[Event "New York Spring GM-A 2022"]
[Site "New York"]
[Date "2022.04.18"]
[Round "8.5"]
[White "Ostrovskiy, Aleksandr"]
[Black "Wang, Kevin"]
[Result "1/2-1/2"]
[ECO "B12"]
[WhiteElo "2409"]
[BlackElo "2389"]
[Annotator "TA"]
[PlyCount "101"]
[EventDate "2022.04.14"]
[EventType "tourn"]
[EventCountry "USA"]
[SourceTitle "playchess.com"]
[Source "ChessBase"]
[SourceQuality "1"]
[TimeControl "5400+30"]

{[%evp 9,101,6,6,8,15,1,16,0,15,15,15,0,0,0,6,13,5,12,8,0,0,0,0,0,0,0,0,0,-4,-12,0,0,0,0,25,14,45,16,28,21,46,42,28,58,59,0,16,18,26,26,39,34,45,6,8,0,0,0,0,0,4,0,0,0,0,0,0,0,0,0,33,0,0,0,81,0,0,0,0,0,0,0,0,0,0,0,0,0,0,0,0,0,0,0]} 1. e4 {[%emt 0:05:15]} c6 {[%emt 0:00:12]} 2. d4 {[%emt 0:00:26]} d5 {[%emt 0:00:16]} 3. e5 {[%emt 0:00:06]} Bf5 {[%emt 0:01:20]} 4. h4 {[%emt 0:00:22]} h5 {[%emt 0:01:19]} 5. Bd3 {[%emt 0:01:34]} Bxd3 {[%emt 0:00:44]} 6. Qxd3 {[%emt 0:00:03][%cal Oe5e6] B12: Caro-Kann: Advance Variation.} Qa5+ {[%emt 0:00:43]} 7. Nd2 {[%emt 0:00:42][%cal Oe5e6]} e6 $1 {[%emt 0:03:05]} 8. Ngf3 {[%emt 0:00:19]} Nh6 {[%emt 0:00:57]} 9. O-O {[%emt 0:01:49]} Nf5 {[%emt 0:01:18]} 10. Nb3 {[%emt 0:00:31]} Qa6 {[%emt 0:01:42]} 11. Qd1 {[%emt 0:00:27]} b6 {[%emt 0:00:51]} 12. Bg5 {[%emt 0:02:36]} c5 {[%emt 0:01:47]} 13. dxc5 {[%emt 0:02:06]} Bxc5 {[%emt 0:00:48]} 14. Nxc5 {[%emt 0:00:57]} bxc5 {[%emt 0:00:07]} 15. Re1 {[%emt 0:01:07]} Nc6 {[%emt 0:08:11]} 16. c3 {[%emt 0:04:03]} Rb8 {[%emt 0:06:08]} 17. b3 {[%emt 0:07:35]} Qa5 {[%emt 0:06:46] [#]} 18. Qd3 $146 {[%emt 0:14:27]} ({Predecessor:} 18. Bd2 Qc7 19. Qe2 a5 20. g3 a4 21. Rab1 axb3 22. axb3 Rb7 23. Bg5 Rb6 24. Qa2 {0-1 (45) Diaz Rosas,J (2367)-Cori,J (2652) Villahermosa 2021}) 18... O-O {[%emt 0:02:33]} 19. c4 {[%emt 0:09:11]} dxc4 {[%emt 0:07:47]} 20. Qxc4 {[%emt 0:02:47]} Ncd4 {[%emt 0:03:04]} 21. Qd3 {[%emt 0:10:07]} Qb5 {[%emt 0:03:45]} 22. Qd1 {[%emt 0:01:44]} Rfc8 {[%emt 0:10:09][%cal Bf8c8,Bc8c5,Bc5d5][%mdl 32]} 23. Nxd4 {[%emt 0:12:36]} cxd4 {[%emt 0:01:06][%cal Bc5d4,Bd4d3][%mdl 32]} 24. Qxh5 {[%emt 0:00:18]} Rc5 {[%emt 0:07:59]} 25. Qf3 {[%emt 0:06:43] Threatens to win with g4.} d3 $1 {[%emt 0:03:39]} (25... Rxe5 $2 26. Rxe5 Qxe5 27. Bf4 $18) 26. Rad1 {[%emt 0:01:48]} Rd5 {[%emt 0:00:42]} 27. Kh1 {[%emt 0:03:29]} (27. Re4 $1 $14) 27... Rc8 {[%emt 0:06:34]} 28. g4 {[%emt 0:05:46]} Nd4 {[%emt 0:02:32]} 29. Qxd3 {[%emt 0:00:57]} Qc6 {[%emt 0:01:03]} 30. Qe4 {[%emt 0:03:34] Strongly threatening Rc1.} Nxb3 {[%emt 0:09:56] [#] aiming for ...Rxd1.} 31. Rxd5 {[%emt 0:00:28]} (31. Kh2 $5 {[%cal Ra2b3]} Nc5 32. Qf3 $14) 31... exd5 {[%emt 0:00:01]} 32. Qf3 {[%emt 0:01:42]} Nd4 {[%emt 0:01:02]} 33. Qd3 {[%emt 0:00:30]} Ne6 {[%emt 0:02:15]} 34. Rc1 {[%emt 0:00:27]} Qb7 {[%emt 0:00:01]} 35. Rxc8+ {[%emt 0:00:49]} (35. Rb1 {seems wilder.} Qc7 36. Qxd5 Nxg5 37. hxg5 Qc2 38. Rf1) 35... Qxc8 {[%emt 0:00:01]} 36. Qxd5 {[%emt 0:00:22] Black must now prevent Be3.} Nxg5 {[%emt 0:00:38]} 37. hxg5 {[%emt 0:00:01] And now g6 would win.} Qxg4 $11 {[%emt 0:00:06][%mdl 4096] Endgame KQ-KQ} 38. Qd8+ {[%emt 0:00:57]} Kh7 {[%emt 0:00:01]} 39. Qd3+ {[%emt 0:00:02]} Kg8 {[%emt 0:02:37]} 40. Qd8+ {[%emt 0:00:01]} (40. g6 $5 fxg6 41. Qd5+ Kf8 42. Qa8+ Kf7 43. Qxa7+ Ke6 44. Qe3 $16 (44. Qxg7 Qe4+ 45. Kh2 Qh4+ 46. Kg1 Qg4+ 47. Kf1 Qd1+ 48. Kg2 Qg4+ 49. Kh2 Qh4+ 50. Kg2 Qg4+ 51. Kh2 Qh4+ $11)) 40... Kh7 {[%emt 0:00:03]} 41. Qd3+ {[%emt 0:00:01]} (41. Qe7 $11) 41... Kg8 $16 {[%emt 0:00:04] [#]} 42. Qe3 {[%emt 0:00:34]} (42. g6 $1 $16 fxg6 43. Qd5+ Kf8 44. Kh2) 42... a5 $11 {[%emt 0:01:38] The position is equal.} 43. a3 {[%emt 0:00:02]} a4 {[%emt 0:00:15]} 44. Kh2 {[%emt 0:01:51]} Kf8 {[%emt 0:01:24]} 45. f4 {[%emt 0:01:02]} g6 {[%emt 0:00:37]} 46. Qc5+ {[%emt 0:00:15]} Kg8 {[%emt 0:00:47]} 47. Qe3 {[%emt 0:00:04]} Kf8 {[%emt 0:00:40]} 48. Qc5+ {[%emt 0:00:01]} Kg8 {[%emt 0:00:05]} 49. Qe3 {[%emt 0:01:52]} Kf8 {[%emt 0:00:11]} 50. Qf2 {[%emt 0:00:31]} Kg8 {[%emt 0:01:17]} 51. Qe3 {[%emt 0:00:28] Weighted Error Value: White=0.07 (flawless) /Black=0.05 (flawless)} 1/2-1/2

[Event "New York Spring GM-A 2022"]
[Site "New York"]
[Date "2022.04.19"]
[Round "9.3"]
[White "Liang, Jason"]
[Black "Song, Edward"]
[Result "1-0"]
[ECO "A01"]
[WhiteElo "2419"]
[BlackElo "2383"]
[Annotator "TA"]
[PlyCount "85"]
[EventDate "2022.04.14"]
[EventType "tourn"]
[EventCountry "USA"]
[SourceTitle "playchess.com"]
[Source "ChessBase"]
[SourceQuality "1"]
[TimeControl "5400+30"]

{[%evp 9,85,0,0,0,0,0,0,0,0,0,4,-23,11,0,0,8,7,0,-10,-14,-12,-18,-2,-16,-20,-20,-19,-11,-13,-14,0,-20,-18,-14,-20,-22,10,0,35,54,30,-16,-18,-13,16,-13,36,-37,0,0,141,133,122,125,184,172,162,175,237,237,216,163,269,270,420,430,977,956,29984,29985,29985,29986,29995,29996,29996,29995,29997,29998]} 1. b3 {[%emt 0:00:02]} d5 {[%emt 0:00:45]} 2. Bb2 {[%emt 0:00:07]} Bg4 {[%emt 0:00:19]} 3. f3 {[%emt 0:00:09]} Bh5 {[%emt 0:00:06]} 4. h4 {[%emt 0:00:23]} f6 {[%emt 0:07:14]} 5. d4 {[%emt 0:00:11]} Nc6 {[%emt 0:02:23] [#]} 6. e3 $146 {[%emt 0:05:22] A01: Nimzowitsch-Larsen Opening.} ({Predecessor:} 6. Nc3 Nh6 7. Qd2 e5 8. dxe5 d4 9. Ne4 Bb4 10. c3 dxc3 11. Bxc3 Qxd2+ 12. Kxd2 {0-1 (110) Bharath,S (2435)-Dvirnyy,D (2488) Chess.com INT 2021}) 6... e5 {[%emt 0:03:01]} 7. Nc3 {[%emt 0:03:41]} Bf7 {[%emt 0:04:54]} 8. Qd2 {[%emt 0:01:05] The position is equal.} Qd7 {[%emt 0:03:47]} 9. O-O-O {[%emt 0:00:39]} O-O-O {[%emt 0:00:30]} 10. g4 {[%emt 0:04:00]} Kb8 {[%emt 0:04:16]} 11. Nge2 {[%emt 0:06:11]} Bb4 {[%emt 0:13:29][%cal Bf8b4,Bb4a5,Ba5b6][%mdl 32]} 12. a3 {[%emt 0:01:39]} Ba5 {[%emt 0:00:50]} 13. b4 {[%emt 0:05:51]} Bb6 {[%emt 0:00:06]} 14. Kb1 {[%emt 0:06:45]} Nge7 {[%emt 0:02:01][%cal Bg8e7,Be7c8,Bc8d6][%mdl 32]} 15. Na4 {[%emt 0:02:10]} Nc8 {[%emt 0:02:02]} 16. Nc5 {[%emt 0:04:39]} Qe7 {[%emt 0:04:08]} 17. Ng3 {[%emt 0:03:25]} Nd6 {[%emt 0:04:10]} 18. Qc3 {[%emt 0:01:46]} Rhe8 {[%emt 0:08:17]} 19. Bd3 {[%emt 0:03:45]} Bg6 {[%emt 0:04:21]} 20. Bf1 {[%emt 0:02:52]} h6 {[%emt 0:04:32]} 21. Bc1 {[%emt 0:02:51]} Qf7 {[%emt 0:10:55]} 22. Rg1 {[%emt 0:03:18]} f5 {[%emt 0:05:59]} 23. gxf5 {[%emt 0:00:56]} Nxf5 {[%emt 0:00:17]} 24. Nxf5 {[%emt 0:01:26]} Bxf5 {[%emt 0:00:12]} 25. Bb5 {[%emt 0:01:40]} (25. dxe5 {is superior.} Nxe5 26. e4) 25... exd4 $11 {[%emt 0:05:18]} 26. exd4 {[%emt 0:00:18][%cal Oc5b7]} Qf6 {[%emt 0:00:51]} 27. Rg2 {[%emt 0:03:58]} Rg8 {[%emt 0:00:55]} (27... Bxc5 $11 28. bxc5 Re7) 28. Kb2 {[%emt 0:02:27]} ({White should play} 28. Bxc6 $14 Qxc6 29. Na6+ $1 Kc8 30. Qxc6 bxc6 31. Nc5) 28... Ne7 {[%emt 0:01:14]} (28... Bxc5 $5 29. Qxc5 Rd6 $15) 29. Bf4 {[%emt 0:02:46]} Bc8 {[%emt 0:02:09]} (29... Ng6 $11 {keeps the balance.} 30. Bg3 Nxh4) 30. Be5 $16 {[%emt 0:00:17]} Qf7 {[%emt 0:00:34] [#]} 31. Na4 $1 {[%emt 0:01:44] &Bianco is much more active.} Nf5 {[%emt 0:00:26]} (31... Ng6 $16) 32. Nxb6 $18 {[%emt 0:01:18]} axb6 {[%emt 0:00:01] [#]} 33. Rdg1 $1 {[%emt 0:00:09]} Be6 {[%emt 0:03:34]} (33... Rd6 $142 34. Bd3 (34. Bxd6 Nxd6 35. Bd3 Bf5 $16) 34... Rc6) 34. Rg6 {[%emt 0:03:43][%cal Og6e6]} Rc8 {[%emt 0:01:02]} 35. Qe1 {[%emt 0:02:56][%cal Og6e6] Rxe6! is the strong threat.} Ka7 {[%emt 0:01:41]} (35... Nd6 {keeps fighting.}) 36. Bd3 {[%emt 0:00:43] This bishop pair is nice.} Bd7 {[%emt 0:00:42]} (36... Rce8 {is a better defense.} 37. Qc3 Qd7 38. Bxf5 (38. Qxc7 Qxc7 39. Bxc7 Nxh4 $16) 38... Bxf5) 37. b5 {[%emt 0:01:15] Threatens to win with a4.} Qe8 {[%emt 0:00:37]} (37... Rge8 $142 38. a4 Qf8) 38. Qb4 {[%emt 0:00:57]} Nxh4 {[%emt 0:00:51] [#]} 39. Rxb6 $3 {[%emt 0:01:39][%mdl 512] White mates.} Kb8 {[%emt 0:00:22]} (39... Qxe5 40. dxe5) 40. Qa4 {[%emt 0:00:29]} Rd8 {[%emt 0:00:26] [#]} 41. Rxb7+ $3 {[%emt 0:00:30][%mdl 512]} Kxb7 {[%emt 0:00:01]} 42. Qa6+ {[%emt 0:00:08]} Kb8 {[%emt 0:00:01]} 43. b6 {[%emt 0:00:14] Weighted Error Value: White=0.08 (flawless) /Black=0.45} 1-0

[Event "New York Spring GM-A 2022"]
[Site "New York"]
[Date "2022.04.18"]
[Round "9.4"]
[White "Guo, Arthur"]
[Black "Korley, Kassa"]
[Result "1/2-1/2"]
[ECO "C02"]
[WhiteElo "2412"]
[BlackElo "2399"]
[Annotator "TA"]
[PlyCount "26"]
[EventDate "2022.04.14"]
[EventType "tourn"]
[EventCountry "USA"]
[SourceTitle "playchess.com"]
[Source "ChessBase"]
[SourceQuality "1"]
[TimeControl "5400+30"]

{[%evp 12,26,4,0,-10,-14,-24,-20,0,0,0,-39,0,0,0,-59,0]} 1. e4 {[%emt 0:00:12]} e6 {[%emt 0:00:05]} 2. d4 {[%emt 0:00:09]} d5 {[%emt 0:00:05]} 3. e5 {[%emt 1:31:39]} c5 {[%emt 0:00:03]} 4. c3 {[%emt 0:00:00]} Nc6 {[%emt 0:00:02]} 5. Nf3 {[%emt 0:00:00]} Nge7 {[%emt 0:00:13]} 6. h4 {[%emt 0:00:00]} Bd7 {[%emt 0:05:43]} 7. Be2 {[%emt 0:00:00]} Qb6 {[%emt 0:06:35] C02: French: Advance Variation.} 8. Na3 {[%emt 0:00:00]} cxd4 {[%emt 0:02:50]} 9. cxd4 {[%emt 0:00:00]} Nf5 {[%emt 0:00:31][%cal Rc6d4] The position is equal.} 10. Nc2 {[%emt 0:00:00]} Nb4 {[%emt 0:05:30] [#]} 11. Na3 $146 {[%emt 0:00:00]} ({Predecessor:} 11. Kf1 h5 12. g3 Bb5 13. Bxb5+ Qxb5+ 14. Kg2 {½-½ (14) Movsesian,S (2651)-Nikolic,P (2661) Germany 2002}) 11... Nc6 {[%emt 0:04:54][%cal Rf5d4]} (11... f6 $5 {[%cal Rf6e5]} 12. g4 Ne7 $11) 12. Nc2 {[%emt 0:00:00]} Nb4 {[%emt 0:00:05] aiming for ...Nxc2+.} 13. Na3 {[%emt 0:00:00]} Nc6 {[%emt 0:10:16] An uneventful encounter.  Weighted Error Value: White=0.09 (flawless) /Black=0.09 (flawless)} (13... f6 $15 14. g4 Ne7) 1/2-1/2